[Event "Early-Titled-Tuesday-Blitz-February-20-2024"]
[Site "Chess.com"]
[Date "2024.02.20"]
[Round "7"]
[White "GoltsevDmitry2000"]
[Black "Casablanca"]
[Result "1/2-1/2"]
[WhiteElo "2777"]
[BlackElo "2620"]
[TimeControl "180+1"]
[EndTime "9:19:15 PST"]
[Termination "Game drawn by repetition"]

1. e4 {[%clk 0:02:59.5]} 1... c5 {[%clk 0:03:00.2]} 2. Nf3 {[%clk 0:02:58.9]}
2... d6 {[%clk 0:03:00.7]} 3. d4 {[%clk 0:02:58.7]} 3... cxd4 {[%clk 0:03:01.6]}
4. Nxd4 {[%clk 0:02:59.6]} 4... Nf6 {[%clk 0:03:02.1]} 5. Nc3 {[%clk 0:02:59.2]}
5... g6 {[%clk 0:03:02.8]} 6. Be2 {[%clk 0:02:59.4]} 6... Bg7 {[%clk 0:03:03.1]}
7. O-O {[%clk 0:02:59.3]} 7... O-O {[%clk 0:03:03.8]} 8. Be3 {[%clk 0:02:59.1]}
8... Nc6 {[%clk 0:03:04.7]} 9. Qd2 {[%clk 0:02:58.7]} 9... d5 {[%clk 0:03:05.2]}
10. exd5 {[%clk 0:02:58.8]} 10... Nxd5 {[%clk 0:03:06.1]} 11. Nxd5 {[%clk
0:02:59.7]} 11... Nxd4 {[%clk 0:03:04.7]} 12. Bxd4 {[%clk 0:02:54.8]} 12... Qxd5
{[%clk 0:03:04.7]} 13. c3 {[%clk 0:02:55.2]} 13... Bxd4 {[%clk 0:02:53.4]} 14.
Qxd4 {[%clk 0:02:56.1]} 14... Qxd4 {[%clk 0:02:49.3]} 15. cxd4 {[%clk
0:02:54.2]} 15... Rd8 {[%clk 0:02:50.2]} 16. Rfd1 {[%clk 0:02:53.7]} 16... Be6
{[%clk 0:02:50.3]} 17. Bf3 {[%clk 0:02:52.7]} 17... Bd5 {[%clk 0:02:50.9]} 18.
Bxd5 {[%clk 0:02:49.6]} 18... Rxd5 {[%clk 0:02:51.8]} 19. Rac1 {[%clk
0:02:50.1]} 19... Rad8 {[%clk 0:02:50.8]} 20. Rc7 {[%clk 0:02:41.6]} 20... R8d7
{[%clk 0:02:44.6]} 21. Rxd7 {[%clk 0:02:39.3]} 21... Rxd7 {[%clk 0:02:45.5]} 22.
Kf1 {[%clk 0:02:39.3]} 22... e6 {[%clk 0:02:45.7]} 23. Ke2 {[%clk 0:02:39.6]}
23... Kf8 {[%clk 0:02:45.6]} 24. Kd3 {[%clk 0:02:40.1]} 24... Ke7 {[%clk
0:02:45.6]} 25. Rc1 {[%clk 0:02:40.6]} 25... h5 {[%clk 0:01:57.7]} 26. f4 {[%clk
0:02:32.5]} 26... Kf6 {[%clk 0:01:52.3]} 27. Ke4 {[%clk 0:02:28.7]} 27... Rd5
{[%clk 0:01:52.3]} 28. Rc5 {[%clk 0:02:21.7]} 28... Rd6 {[%clk 0:01:47]} 29. g3
{[%clk 0:02:13.2]} 29... Rd7 {[%clk 0:00:53.4]} 30. h3 {[%clk 0:01:57.7]} 30...
Ke7 {[%clk 0:00:51.2]} 31. b4 {[%clk 0:01:44.4]} 31... Kd6 {[%clk 0:00:48.1]}
32. d5 {[%clk 0:01:36.3]} 32... Re7 {[%clk 0:00:43.2]} 33. Kd4 {[%clk
0:01:27.1]} 33... e5+ {[%clk 0:00:40.8]} 34. fxe5+ {[%clk 0:01:26.1]} 34... Rxe5
{[%clk 0:00:41.7]} 35. Rc8 {[%clk 0:01:22.5]} 35... Rxd5+ {[%clk 0:00:41.5]} 36.
Kc4 {[%clk 0:01:22]} 36... Rg5 {[%clk 0:00:40.4]} 37. Rd8+ {[%clk 0:01:18.3]}
37... Kc6 {[%clk 0:00:37]} 38. Rf8 {[%clk 0:01:16.4]} 38... Rf5 {[%clk
0:00:22.1]} 39. a4 {[%clk 0:01:09.1]} 39... a6 {[%clk 0:00:22.6]} 40. a5 {[%clk
0:01:08]} 40... h4 {[%clk 0:00:19]} 41. gxh4 {[%clk 0:01:07.5]} 41... Rf4+
{[%clk 0:00:19.5]} 42. Kc3 {[%clk 0:01:07.9]} 42... Rxh4 {[%clk 0:00:17.9]} 43.
Rxf7 {[%clk 0:01:08.2]} 43... Rxh3+ {[%clk 0:00:18.6]} 44. Kc4 {[%clk
0:01:08.7]} 44... Rh4+ {[%clk 0:00:19.3]} 45. Kc3 {[%clk 0:01:09.3]} 45... Rg4
{[%clk 0:00:19.8]} 46. Rf6+ {[%clk 0:01:08.1]} 46... Kc7 {[%clk 0:00:20.5]} 47.
Rf7+ {[%clk 0:01:08.1]} 47... Kc6 {[%clk 0:00:21.2]} 48. Rf6+ {[%clk 0:01:05.9]}
48... Kc7 {[%clk 0:00:21.8]} 49. Rf7+ {[%clk 0:01:06.3]} 49... Kb8 {[%clk
0:00:22.3]} 50. Rg7 {[%clk 0:01:04.6]} 50... g5 {[%clk 0:00:22]} 51. Kb3 {[%clk
0:01:04.5]} 51... Kc8 {[%clk 0:00:21.3]} 52. Kc3 {[%clk 0:01:04.4]} 52... Kb8
{[%clk 0:00:19.4]} 53. Kb3 {[%clk 0:01:04.7]} 53... Kc8 {[%clk 0:00:20]} 54. Kc3
{[%clk 0:01:05]} 54... Kb8 {[%clk 0:00:20.7]} 1/2-1/2

[Event "Early-Titled-Tuesday-Blitz-February-20-2024"]
[Site "Chess.com"]
[Date "2024.02.20"]
[Round "7"]
[White "HanSchut"]
[Black "wanyaland"]
[Result "1/2-1/2"]
[WhiteElo "2293"]
[BlackElo "2491"]
[TimeControl "180+1"]
[EndTime "9:19:19 PST"]
[Termination "Game drawn by repetition"]

1. e4 {[%clk 0:02:52.7]} 1... c5 {[%clk 0:02:57]} 2. Nf3 {[%clk 0:02:52.9]} 2...
e6 {[%clk 0:02:56.6]} 3. c4 {[%clk 0:02:53.1]} 3... a6 {[%clk 0:02:55.5]} 4. Nc3
{[%clk 0:02:53.5]} 4... Nc6 {[%clk 0:02:55.1]} 5. Be2 {[%clk 0:02:53.9]} 5...
Nf6 {[%clk 0:02:53.2]} 6. O-O {[%clk 0:02:54.2]} 6... Qc7 {[%clk 0:02:53]} 7. d4
{[%clk 0:02:53.8]} 7... cxd4 {[%clk 0:02:52.6]} 8. Nxd4 {[%clk 0:02:54.7]} 8...
Bb4 {[%clk 0:02:51.3]} 9. Qd3 {[%clk 0:02:51.8]} 9... b6 {[%clk 0:02:44.8]} 10.
a3 {[%clk 0:02:34.8]} 10... Bxc3 {[%clk 0:02:38.7]} 11. bxc3 {[%clk 0:02:35.7]}
11... Bb7 {[%clk 0:02:35.3]} 12. Nxc6 {[%clk 0:02:19]} 12... Bxc6 {[%clk
0:02:19]} 13. f3 {[%clk 0:02:15.9]} 13... O-O {[%clk 0:02:13.9]} 14. Be3 {[%clk
0:02:15.8]} 14... d5 {[%clk 0:02:10.8]} 15. cxd5 {[%clk 0:02:09.9]} 15... exd5
{[%clk 0:02:10.6]} 16. e5 {[%clk 0:01:37.6]} 16... Qxe5 {[%clk 0:02:07]} 17. Bd4
{[%clk 0:01:38.3]} 17... Qg5 {[%clk 0:02:04.5]} 18. Bxb6 {[%clk 0:01:29.4]}
18... Bb5 {[%clk 0:02:02.5]} 19. Qd1 {[%clk 0:01:22.2]} 19... Bxe2 {[%clk
0:02:01.9]} 20. Qxe2 {[%clk 0:01:21.9]} 20... Rfe8 {[%clk 0:02:02.8]} 21. Qd3
{[%clk 0:01:13.5]} 21... Nh5 {[%clk 0:02:01.1]} 22. Kh1 {[%clk 0:00:51.2]} 22...
Qxg2+ {[%clk 0:01:55.6]} 23. Kxg2 {[%clk 0:00:50]} 23... Nf4+ {[%clk 0:01:56.1]}
24. Kg3 {[%clk 0:00:39]} 24... Nxd3 {[%clk 0:01:57]} 25. Rad1 {[%clk 0:00:33.5]}
25... Nb2 {[%clk 0:01:50.1]} 26. Rxd5 {[%clk 0:00:19.3]} 26... Nc4 {[%clk
0:01:51]} 27. Bd4 {[%clk 0:00:16.8]} 27... Nxa3 {[%clk 0:01:46]} 28. Ra1 {[%clk
0:00:13.6]} 28... Nc2 {[%clk 0:01:44]} 29. Ra2 {[%clk 0:00:14]} 29... Nxd4
{[%clk 0:01:42.8]} 30. cxd4 {[%clk 0:00:14.7]} 30... Re6 {[%clk 0:01:41.6]} 31.
Rda5 {[%clk 0:00:13.5]} 31... h6 {[%clk 0:01:40.9]} 32. d5 {[%clk 0:00:13.9]}
32... Rd6 {[%clk 0:01:41]} 33. Kf4 {[%clk 0:00:14.1]} 33... Re8 {[%clk
0:01:38.9]} 34. R2a4 {[%clk 0:00:09.8]} 34... g5+ {[%clk 0:01:36.7]} 35. Kg4
{[%clk 0:00:09.5]} 35... Kg7 {[%clk 0:01:37.2]} 36. f4 {[%clk 0:00:09]} 36... f6
{[%clk 0:01:35.3]} 37. fxg5 {[%clk 0:00:09]} 37... hxg5 {[%clk 0:01:34.9]} 38.
h4 {[%clk 0:00:09.9]} 38... gxh4 {[%clk 0:01:33.8]} 39. Kxh4 {[%clk 0:00:10.8]}
39... Re5 {[%clk 0:01:33.2]} 40. Rxa6 {[%clk 0:00:09.7]} 40... Rxa6 {[%clk
0:01:33.1]} 41. Rxa6 {[%clk 0:00:10.3]} 41... Rxd5 {[%clk 0:01:33.9]} 42. Kg4
{[%clk 0:00:11]} 42... Kg6 {[%clk 0:01:34.1]} 43. Ra4 {[%clk 0:00:09.8]} 43...
Rg5+ {[%clk 0:01:33.7]} 44. Kf4 {[%clk 0:00:10.2]} 44... Rg1 {[%clk 0:01:34.2]}
45. Rb4 {[%clk 0:00:08.7]} 45... Rf1+ {[%clk 0:01:28.2]} 46. Kg4 {[%clk
0:00:09]} 46... f5+ {[%clk 0:01:27.2]} 47. Kg3 {[%clk 0:00:08]} 47... Kg5 {[%clk
0:01:26.3]} 48. Kg2 {[%clk 0:00:07]} 48... Rf4 {[%clk 0:01:24.6]} 49. Rxf4
{[%clk 0:00:04.5]} 49... Kxf4 {[%clk 0:01:23.1]} 50. Kf2 {[%clk 0:00:05.3]}
50... Kg4 {[%clk 0:01:23.2]} 51. Kg2 {[%clk 0:00:05.5]} 51... f4 {[%clk
0:01:23.7]} 52. Kf2 {[%clk 0:00:04.7]} 52... Kg5 {[%clk 0:01:24.2]} 53. Kf3
{[%clk 0:00:04.9]} 53... Kf5 {[%clk 0:01:25.1]} 54. Kf2 {[%clk 0:00:05.4]} 54...
Ke4 {[%clk 0:01:25.5]} 55. Ke2 {[%clk 0:00:05.7]} 55... f3+ {[%clk 0:01:24.8]}
56. Kf2 {[%clk 0:00:06.1]} 56... Kf4 {[%clk 0:01:25.7]} 57. Kf1 {[%clk
0:00:06.4]} 57... Kg4 {[%clk 0:01:26]} 58. Kf2 {[%clk 0:00:05.9]} 58... Kf4
{[%clk 0:01:26.9]} 59. Kf1 {[%clk 0:00:06.4]} 59... Ke4 {[%clk 0:01:27.8]} 60.
Kf2 {[%clk 0:00:06.5]} 60... Kf4 {[%clk 0:01:27.8]} 1/2-1/2

[Event "Early-Titled-Tuesday-Blitz-February-20-2024"]
[Site "Chess.com"]
[Date "2024.02.20"]
[Round "7"]
[White "Zallio"]
[Black "atalz0"]
[Result "1-0"]
[WhiteElo "2161"]
[BlackElo "2371"]
[TimeControl "180+1"]
[EndTime "9:19:20 PST"]
[Termination "Zallio won by checkmate"]

1. d4 {[%clk 0:03:00.9]} 1... Nf6 {[%clk 0:02:59]} 2. Nf3 {[%clk 0:03:01.4]}
2... e6 {[%clk 0:02:59.1]} 3. e3 {[%clk 0:03:01.9]} 3... Be7 {[%clk 0:02:58]} 4.
Be2 {[%clk 0:02:57.5]} 4... O-O {[%clk 0:02:57.5]} 5. O-O {[%clk 0:02:57.5]}
5... b6 {[%clk 0:02:56.1]} 6. b3 {[%clk 0:02:57.9]} 6... Bb7 {[%clk 0:02:56.3]}
7. Bb2 {[%clk 0:02:57.6]} 7... d5 {[%clk 0:02:51]} 8. Nbd2 {[%clk 0:02:57.4]}
8... c5 {[%clk 0:02:50.4]} 9. c4 {[%clk 0:02:57.2]} 9... Nc6 {[%clk 0:02:48.2]}
10. Rc1 {[%clk 0:02:55.8]} 10... cxd4 {[%clk 0:02:45.2]} 11. exd4 {[%clk
0:02:53.4]} 11... Rc8 {[%clk 0:02:44.7]} 12. Re1 {[%clk 0:02:48.6]} 12... dxc4
{[%clk 0:02:21.6]} 13. bxc4 {[%clk 0:02:46.5]} 13... Qc7 {[%clk 0:02:20]} 14.
Qa4 {[%clk 0:02:36.4]} 14... Rfd8 {[%clk 0:01:56.9]} 15. Bd3 {[%clk 0:02:31.1]}
15... Qf4 {[%clk 0:01:34.3]} 16. h3 {[%clk 0:02:12.7]} 16... Bd6 {[%clk
0:01:08.8]} 17. g3 {[%clk 0:01:55.7]} 17... Qh6 {[%clk 0:01:07.3]} 18. Kg2
{[%clk 0:01:46.5]} 18... Bb4 {[%clk 0:01:01.1]} 19. Ne4 {[%clk 0:01:16.1]} 19...
Bxe1 {[%clk 0:00:56.5]} 20. Rxe1 {[%clk 0:01:16.1]} 20... Na5 {[%clk 0:00:13.1]}
21. Bc1 {[%clk 0:01:14.4]} 21... Qh5 {[%clk 0:00:12.2]} 22. Nxf6+ {[%clk
0:01:01.2]} 22... gxf6 {[%clk 0:00:13.1]} 23. Be4 {[%clk 0:00:59.7]} 23... Bxe4
{[%clk 0:00:11]} 24. Rxe4 {[%clk 0:01:00.5]} 24... Nxc4 {[%clk 0:00:10]} 25.
Qxa7 {[%clk 0:00:58.4]} 25... Qd5 {[%clk 0:00:09.1]} 26. Rg4+ {[%clk 0:00:55]}
26... Kh8 {[%clk 0:00:08.8]} 27. Bh6 {[%clk 0:00:54.9]} 27... Rg8 {[%clk
0:00:08.4]} 28. Qxf7 {[%clk 0:00:55.5]} 28... Rxg4 {[%clk 0:00:08]} 29. Qxf6+
{[%clk 0:00:56]} 29... Kg8 {[%clk 0:00:07.2]} 30. hxg4 {[%clk 0:00:54.3]} 30...
Qd7 {[%clk 0:00:06.1]} 31. Qg5+ {[%clk 0:00:48.1]} 31... Kh8 {[%clk 0:00:05.9]}
32. Qf6+ {[%clk 0:00:48.4]} 32... Kg8 {[%clk 0:00:06.2]} 33. Ng5 {[%clk
0:00:45.2]} 33... Qb7+ {[%clk 0:00:05]} 34. Kh2 {[%clk 0:00:41.4]} 34... Nd6
{[%clk 0:00:03.6]} 35. Qxe6+ {[%clk 0:00:39.3]} 35... Kh8 {[%clk 0:00:02.4]} 36.
Qxd6 {[%clk 0:00:39.3]} 36... Rc1 {[%clk 0:00:01.5]} 37. Qf8# {[%clk 0:00:36.5]}
1-0

[Event "Early-Titled-Tuesday-Blitz-February-20-2024"]
[Site "Chess.com"]
[Date "2024.02.20"]
[Round "7"]
[White "BilodeauA"]
[Black "BogdanDeac"]
[Result "1/2-1/2"]
[WhiteElo "3038"]
[BlackElo "3051"]
[TimeControl "180+1"]
[EndTime "9:19:25 PST"]
[Termination "Game drawn by agreement"]

1. e4 {[%clk 0:03:00.9]} 1... e5 {[%clk 0:03:00]} 2. Nf3 {[%clk 0:02:59.2]} 2...
Nc6 {[%clk 0:02:58.2]} 3. Bc4 {[%clk 0:02:59.8]} 3... Nf6 {[%clk 0:02:57.5]} 4.
d3 {[%clk 0:03:00.1]} 4... Bc5 {[%clk 0:02:57.6]} 5. h3 {[%clk 0:03:00.2]} 5...
d6 {[%clk 0:02:56.8]} 6. a3 {[%clk 0:03:00.7]} 6... a6 {[%clk 0:02:53.3]} 7. Be3
{[%clk 0:02:59.4]} 7... Bxe3 {[%clk 0:02:47.2]} 8. fxe3 {[%clk 0:03:00.3]} 8...
Ne7 {[%clk 0:02:47]} 9. Nc3 {[%clk 0:02:57.8]} 9... Ng6 {[%clk 0:02:44]} 10. O-O
{[%clk 0:02:57.2]} 10... O-O {[%clk 0:02:42.8]} 11. Qe1 {[%clk 0:02:50.7]} 11...
b5 {[%clk 0:02:37.6]} 12. Ba2 {[%clk 0:02:43.4]} 12... Be6 {[%clk 0:02:37]} 13.
Nh4 {[%clk 0:02:24.8]} 13... Bxa2 {[%clk 0:02:18.1]} 14. Rxa2 {[%clk 0:01:57.2]}
14... Nxe4 {[%clk 0:01:05.3]} 15. Nxg6 {[%clk 0:01:48.7]} 15... Nxc3 {[%clk
0:01:04.5]} 16. Nxf8 {[%clk 0:01:48.8]} 16... Nxa2 {[%clk 0:01:04]} 17. Nxh7
{[%clk 0:01:47.5]} 17... Kxh7 {[%clk 0:00:27.8]} 18. Rxf7 {[%clk 0:00:58.9]}
18... Qg5 {[%clk 0:00:26.9]} 19. Rf3 {[%clk 0:00:58.1]} 19... Re8 {[%clk
0:00:15.6]} 20. Qb1 {[%clk 0:00:30.9]} 20... e4 {[%clk 0:00:12.2]} 21. dxe4
{[%clk 0:00:28.6]} 21... Rxe4 {[%clk 0:00:12.2]} 22. c3 {[%clk 0:00:20.5]} 22...
Qe5 {[%clk 0:00:08.7]} 23. Qxa2 {[%clk 0:00:19.7]} 23... Rxe3 {[%clk 0:00:08.8]}
24. Qb1+ {[%clk 0:00:20.4]} 24... Qe4 {[%clk 0:00:05.9]} 25. Qxe4+ {[%clk
0:00:19.2]} 25... Rxe4 {[%clk 0:00:06.8]} 26. Rf7 {[%clk 0:00:19.7]} 26... c5
{[%clk 0:00:06.4]} 27. Ra7 {[%clk 0:00:17]} 27... Re2 {[%clk 0:00:06.6]} 28.
Rxa6 {[%clk 0:00:16.5]} 28... Rxb2 {[%clk 0:00:06.8]} 29. Rxd6 {[%clk 0:00:17]}
29... Rb3 {[%clk 0:00:07.3]} 30. Rb6 {[%clk 0:00:13.3]} 30... Rxa3 {[%clk
0:00:07.4]} 31. Rxb5 {[%clk 0:00:13.1]} 31... Rxc3 {[%clk 0:00:08.1]} 32. Kf2
{[%clk 0:00:13.6]} 32... Rc2+ {[%clk 0:00:08]} 1/2-1/2

[Event "Early-Titled-Tuesday-Blitz-February-20-2024"]
[Site "Chess.com"]
[Date "2024.02.20"]
[Round "7"]
[White "DACF2905"]
[Black "cmunda"]
[Result "1-0"]
[WhiteElo "2383"]
[BlackElo "2128"]
[TimeControl "180+1"]
[EndTime "9:19:27 PST"]
[Termination "DACF2905 won on time"]

1. e4 {[%clk 0:03:00.9]} 1... c5 {[%clk 0:02:42.3]} 2. Nf3 {[%clk 0:03:00.4]}
2... Nc6 {[%clk 0:02:41.9]} 3. d4 {[%clk 0:02:58.9]} 3... cxd4 {[%clk
0:02:42.2]} 4. Nxd4 {[%clk 0:02:57.9]} 4... e6 {[%clk 0:02:42.4]} 5. Nc3 {[%clk
0:02:57]} 5... Nf6 {[%clk 0:02:42.6]} 6. Nxc6 {[%clk 0:02:54.4]} 6... bxc6
{[%clk 0:02:41.9]} 7. Bd3 {[%clk 0:02:54.4]} 7... d5 {[%clk 0:02:42.1]} 8. exd5
{[%clk 0:02:54.9]} 8... exd5 {[%clk 0:02:42.1]} 9. O-O {[%clk 0:02:55.3]} 9...
Bd6 {[%clk 0:02:42.4]} 10. h3 {[%clk 0:02:53.5]} 10... O-O {[%clk 0:02:41.9]}
11. Re1 {[%clk 0:02:53.7]} 11... Be6 {[%clk 0:02:39.2]} 12. Bg5 {[%clk
0:02:53.5]} 12... Bc7 {[%clk 0:02:38.6]} 13. Ne2 {[%clk 0:02:48.4]} 13... Rb8
{[%clk 0:02:37.7]} 14. Rb1 {[%clk 0:02:47.3]} 14... Rb4 {[%clk 0:02:30.3]} 15.
Qd2 {[%clk 0:02:44.9]} 15... a5 {[%clk 0:02:14.3]} 16. c3 {[%clk 0:02:44.1]}
16... Rb8 {[%clk 0:01:56.3]} 17. Nd4 {[%clk 0:02:40.1]} 17... Qd6 {[%clk
0:01:49.3]} 18. Nf3 {[%clk 0:02:40.2]} 18... Nh5 {[%clk 0:01:38.7]} 19. Re2
{[%clk 0:02:28.5]} 19... Nf4 {[%clk 0:01:34.8]} 20. Bxf4 {[%clk 0:02:27.2]}
20... Qxf4 {[%clk 0:01:35.7]} 21. Qxf4 {[%clk 0:02:26.8]} 21... Bxf4 {[%clk
0:01:36.6]} 22. Nd4 {[%clk 0:02:27.2]} 22... Bd7 {[%clk 0:01:31.4]} 23. Re7
{[%clk 0:02:26.2]} 23... Rfd8 {[%clk 0:01:23.7]} 24. Bf5 {[%clk 0:02:22.9]}
24... Bxf5 {[%clk 0:01:14.1]} 25. Nxf5 {[%clk 0:02:23.8]} 25... g6 {[%clk
0:01:05.4]} 26. Nd4 {[%clk 0:02:22.5]} 26... Rd6 {[%clk 0:00:58.5]} 27. g3
{[%clk 0:02:13]} 27... Bd2 {[%clk 0:00:53.2]} 28. Nb3 {[%clk 0:02:12.2]} 28...
Bg5 {[%clk 0:00:47.4]} 29. Ra7 {[%clk 0:02:12.1]} 29... Re6 {[%clk 0:00:39.7]}
30. Rxa5 {[%clk 0:02:08]} 30... Be7 {[%clk 0:00:33.4]} 31. Kg2 {[%clk
0:02:07.2]} 31... Re2 {[%clk 0:00:28.5]} 32. Nd4 {[%clk 0:02:03.3]} 32... Rexb2
{[%clk 0:00:25.6]} 33. Rxb2 {[%clk 0:02:03.6]} 33... Rxb2 {[%clk 0:00:25.7]} 34.
Nxc6 {[%clk 0:02:04.5]} 34... Bf6 {[%clk 0:00:24.3]} 35. Rxd5 {[%clk 0:02:01.3]}
35... Rxa2 {[%clk 0:00:21]} 36. Rc5 {[%clk 0:01:50.2]} 36... Rc2 {[%clk
0:00:20.1]} 37. Nd4 {[%clk 0:01:50.4]} 37... Rc1 {[%clk 0:00:17.1]} 38. Ne2
{[%clk 0:01:49.7]} 38... Rc2 {[%clk 0:00:16.4]} 39. Kf3 {[%clk 0:01:49.9]} 39...
h5 {[%clk 0:00:16]} 40. h4 {[%clk 0:01:49.7]} 40... Kf8 {[%clk 0:00:16.1]} 41.
Rc7 {[%clk 0:01:49.4]} 41... Ke8 {[%clk 0:00:15.9]} 42. c4 {[%clk 0:01:49.6]}
42... Be5 {[%clk 0:00:13.5]} 43. Rc5 {[%clk 0:01:48.1]} 43... Bf6 {[%clk
0:00:10.6]} 44. Rc6 {[%clk 0:01:47.6]} 44... Ke7 {[%clk 0:00:09.5]} 45. Nf4
{[%clk 0:01:47]} 45... Bd4 {[%clk 0:00:07.5]} 46. Nd5+ {[%clk 0:01:45.8]} 46...
Kd7 {[%clk 0:00:06.8]} 47. Rc7+ {[%clk 0:01:44.7]} 47... Kd6 {[%clk 0:00:07.2]}
48. Ke4 {[%clk 0:01:44.9]} 48... Bxf2 {[%clk 0:00:06.7]} 49. Rxf7 {[%clk
0:01:29.6]} 49... Bxg3 {[%clk 0:00:06.2]} 50. Rf6+ {[%clk 0:01:25.1]} 50... Kd7
{[%clk 0:00:05.3]} 51. Rxg6 {[%clk 0:01:23.9]} 51... Bxh4 {[%clk 0:00:05]} 52.
Kd3 {[%clk 0:01:22.2]} 52... Rc1 {[%clk 0:00:04.8]} 53. Rh6 {[%clk 0:01:20.5]}
53... Bf2 {[%clk 0:00:04.7]} 54. Rxh5 {[%clk 0:01:19.8]} 54... Bc5 {[%clk
0:00:04.3]} 55. Rh6 {[%clk 0:01:19.4]} 55... Rd1+ {[%clk 0:00:03]} 56. Kc2
{[%clk 0:01:18.6]} 56... Rd4 {[%clk 0:00:02.3]} 57. Kc3 {[%clk 0:01:17.9]} 57...
Rg4 {[%clk 0:00:02.3]} 58. Nf6+ {[%clk 0:01:15.1]} 1-0

[Event "Early-Titled-Tuesday-Blitz-February-20-2024"]
[Site "Chess.com"]
[Date "2024.02.20"]
[Round "7"]
[White "platy3"]
[Black "fighter2jz"]
[Result "0-1"]
[WhiteElo "2952"]
[BlackElo "2802"]
[TimeControl "180+1"]
[EndTime "9:19:28 PST"]
[Termination "fighter2jz won on time"]

1. e4 {[%clk 0:03:00.9]} 1... c5 {[%clk 0:02:55.8]} 2. Nf3 {[%clk 0:02:59.7]}
2... d6 {[%clk 0:02:53.9]} 3. Bb5+ {[%clk 0:02:58]} 3... Bd7 {[%clk 0:02:53.2]}
4. Bxd7+ {[%clk 0:02:57.7]} 4... Nxd7 {[%clk 0:02:53.2]} 5. O-O {[%clk 0:02:54]}
5... Ngf6 {[%clk 0:02:52.8]} 6. Qe2 {[%clk 0:02:54.2]} 6... g6 {[%clk
0:02:52.9]} 7. b3 {[%clk 0:02:49.7]} 7... Bg7 {[%clk 0:02:49.7]} 8. Bb2 {[%clk
0:02:47.4]} 8... O-O {[%clk 0:02:50.6]} 9. c4 {[%clk 0:02:47.2]} 9... Nh5 {[%clk
0:02:39.4]} 10. Bxg7 {[%clk 0:02:44.2]} 10... Kxg7 {[%clk 0:02:38.8]} 11. d4
{[%clk 0:02:42.3]} 11... cxd4 {[%clk 0:02:36.9]} 12. Nxd4 {[%clk 0:02:42.3]}
12... e5 {[%clk 0:02:36.2]} 13. Nf3 {[%clk 0:02:35.9]} 13... Nc5 {[%clk
0:02:34.8]} 14. Nc3 {[%clk 0:02:34.6]} 14... f5 {[%clk 0:02:29.1]} 15. Rad1
{[%clk 0:02:29.7]} 15... Nf4 {[%clk 0:02:19.2]} 16. Qe3 {[%clk 0:02:27.3]} 16...
Nxe4 {[%clk 0:02:17.2]} 17. Nxe4 {[%clk 0:02:16.2]} 17... fxe4 {[%clk
0:02:18.1]} 18. Qxe4 {[%clk 0:02:16.6]} 18... Qe7 {[%clk 0:02:18.5]} 19. Rfe1
{[%clk 0:01:51.2]} 19... Rf7 {[%clk 0:02:14.1]} 20. c5 {[%clk 0:01:45.6]} 20...
dxc5 {[%clk 0:02:05.1]} 21. Nxe5 {[%clk 0:01:22.6]} 21... Re8 {[%clk 0:02:04.5]}
22. Nxf7 {[%clk 0:00:55]} 22... Qxe4 {[%clk 0:02:00.2]} 23. Rxe4 {[%clk
0:00:55.9]} 23... Rxe4 {[%clk 0:02:00.7]} 24. Nd6 {[%clk 0:00:56.6]} 24... Rd4
{[%clk 0:01:34.7]} 25. Rxd4 {[%clk 0:00:53]} 25... cxd4 {[%clk 0:01:35.6]} 26.
g3 {[%clk 0:00:44.2]} 26... d3 {[%clk 0:01:27.6]} 27. Ne4 {[%clk 0:00:43.9]}
27... Ne2+ {[%clk 0:01:27]} 28. Kf1 {[%clk 0:00:43.7]} 28... Nc1 {[%clk
0:01:27.7]} 29. Ke1 {[%clk 0:00:21.9]} 29... Nxa2 {[%clk 0:01:26.5]} 30. Nc5
{[%clk 0:00:19.5]} 30... b6 {[%clk 0:01:05]} 31. Nxd3 {[%clk 0:00:19.6]} 31...
Nc3 {[%clk 0:01:05.5]} 32. Kd2 {[%clk 0:00:18.4]} 32... Nd5 {[%clk 0:01:06.2]}
33. Ne5 {[%clk 0:00:11.4]} 33... Kf6 {[%clk 0:01:04.2]} 34. Nc6 {[%clk 0:00:11]}
34... a5 {[%clk 0:01:01.7]} 35. Kd3 {[%clk 0:00:11]} 35... Kf5 {[%clk
0:01:01.1]} 36. Kc4 {[%clk 0:00:08.2]} 36... Nc7 {[%clk 0:01:01.7]} 37. f3
{[%clk 0:00:05.6]} 37... b5+ {[%clk 0:01:02]} 38. Kc5 {[%clk 0:00:05]} 38... a4
{[%clk 0:01:02.9]} 39. bxa4 {[%clk 0:00:04.5]} 39... bxa4 {[%clk 0:01:03.8]} 40.
Kb4 {[%clk 0:00:04.5]} 40... Ne6 {[%clk 0:00:59.5]} 41. Kxa4 {[%clk 0:00:03.9]}
41... Ng5 {[%clk 0:00:59.9]} 42. f4 {[%clk 0:00:01.6]} 42... Nf3 {[%clk
0:00:59.7]} 43. Kb4 {[%clk 0:00:01.8]} 43... Nxh2 {[%clk 0:00:59.8]} 44. Kc4
{[%clk 0:00:01.7]} 44... Nf1 {[%clk 0:01:00]} 0-1

[Event "Early-Titled-Tuesday-Blitz-February-20-2024"]
[Site "Chess.com"]
[Date "2024.02.20"]
[Round "7"]
[White "Zavgorodniy_Sergiy"]
[Black "sokidze"]
[Result "0-1"]
[WhiteElo "2617"]
[BlackElo "2791"]
[TimeControl "180+1"]
[EndTime "9:19:28 PST"]
[Termination "sokidze won by checkmate"]

1. d4 {[%clk 0:03:00.9]} 1... d5 {[%clk 0:02:58.9]} 2. c4 {[%clk 0:03:01.2]}
2... e6 {[%clk 0:02:58.9]} 3. Nf3 {[%clk 0:03:01.7]} 3... Nf6 {[%clk 0:02:59]}
4. e3 {[%clk 0:03:02.3]} 4... Bd6 {[%clk 0:02:52.4]} 5. Nbd2 {[%clk 0:03:02.6]}
5... O-O {[%clk 0:02:51.6]} 6. Bd3 {[%clk 0:03:02.7]} 6... c5 {[%clk 0:02:43.2]}
7. dxc5 {[%clk 0:03:01.9]} 7... Bxc5 {[%clk 0:02:43.3]} 8. a3 {[%clk 0:03:02.5]}
8... a5 {[%clk 0:02:43.1]} 9. b3 {[%clk 0:03:01.4]} 9... Nc6 {[%clk 0:02:40.2]}
10. Bb2 {[%clk 0:03:01.7]} 10... d4 {[%clk 0:02:18.9]} 11. exd4 {[%clk
0:03:01.6]} 11... Nxd4 {[%clk 0:02:19]} 12. O-O {[%clk 0:03:00.9]} 12... Nxf3+
{[%clk 0:01:36]} 13. Nxf3 {[%clk 0:03:01.8]} 13... b6 {[%clk 0:01:35.3]} 14. Qe2
{[%clk 0:03:00.9]} 14... Bb7 {[%clk 0:01:35]} 15. Ne5 {[%clk 0:02:58.4]} 15...
Qe7 {[%clk 0:01:30.4]} 16. Rfd1 {[%clk 0:02:57.5]} 16... Rfd8 {[%clk 0:01:30]}
17. Kf1 {[%clk 0:02:56]} 17... g6 {[%clk 0:01:16.1]} 18. h3 {[%clk 0:02:49.3]}
18... Nh5 {[%clk 0:01:00.7]} 19. g3 {[%clk 0:02:44]} 19... Qf6 {[%clk 0:00:49]}
20. Ng4 {[%clk 0:02:08.2]} 20... Qg5 {[%clk 0:00:36.8]} 21. h4 {[%clk
0:01:53.8]} 21... Qe7 {[%clk 0:00:34.4]} 22. Qe5 {[%clk 0:01:35.5]} 22... f6
{[%clk 0:00:34.3]} 23. Nxf6+ {[%clk 0:01:32]} 23... Qxf6 {[%clk 0:00:31.6]} 24.
Qxf6 {[%clk 0:01:32.2]} 24... Nxf6 {[%clk 0:00:32.5]} 25. Bxf6 {[%clk
0:01:32.2]} 25... Rf8 {[%clk 0:00:33.1]} 26. b4 {[%clk 0:01:00.8]} 26... Bxf2
{[%clk 0:00:11.7]} 27. Kxf2 {[%clk 0:00:56.9]} 27... Rxf6+ {[%clk 0:00:12.4]}
28. Kg1 {[%clk 0:00:36.5]} 28... Rf3 {[%clk 0:00:12.4]} 29. Kh2 {[%clk
0:00:31.3]} 29... Rf2+ {[%clk 0:00:12.4]} 30. Kh3 {[%clk 0:00:31.2]} 30... Bg2+
{[%clk 0:00:12.5]} 31. Kg4 {[%clk 0:00:30.3]} 31... Bf3+ {[%clk 0:00:12.7]} 32.
Kg5 {[%clk 0:00:30.9]} 32... Kg7 {[%clk 0:00:07.8]} 33. Rf1 {[%clk 0:00:25.8]}
33... Rf8 {[%clk 0:00:07.8]} 34. h5 {[%clk 0:00:24.9]} 34... h6+ {[%clk
0:00:07.6]} 35. Kh4 {[%clk 0:00:25.3]} 35... Rh2# {[%clk 0:00:08.3]} 0-1